Workbook

Sheet 长期贷款还款
A1: 长期贷款返还计划
A3: 购入物品 | D3: <<输入购入物品名称。
A5: 付款条件 | B5: 每月工资还款上限 | D5: <<输入可以支付的金额。
B6: 每次工资外收入还款上限 | D6: <<输入可以支付的金额。
A8: 借入金额 | D8: <<输入借入金额。
A9: 借入项目明细 | B9: 比率（月）（例如 50%） | D9: <<输入每月工资还款占总还款的比率，如“50%”。
B10: 工资还款总额 | C10: =C8*C9 -> 0
B11: 工资外收入还款总额 | C11: =C8-C10 -> 0
A12: 利息（年利率，如 2.5%） | D12: <<输入利息的年利率，如“2.5%”。
A13: 支付情况 | C13: 0 | D13: <<期末输入“0”，期首输入“1”。
A15: 还款期限（年）
A16: 详细时限 | B16: 工资还款次数 | C16: =C15*12 -> 0 | D16: 0 | E16: 0 | F16: 0 | G16: 0 | H16: 0
B17: 工资外收入还款次数 | C17: =C15*2 -> 0 | D17: 0 | E17: 0 | F17: 0 | G17: 0 | H17: 0
A18: 还款明细 | B18: 每月工资还款额 | C18: =IF(C15="","",-PMT($C$12/12,C$16,$C$10,0,$C$13)) -> 
B19: 每次工资外收入还款额 | C19: =IF(C15="","",-PMT($C$12/2,C$17,$C$11,0,$C$13)) -> 
A20: 还款判断 | C20: =IF(AND($C$5="",$C$6=""),"",IF(AND($C$5>=C18,$C$6>=C19),"还款OK","返済不可")) -> 
A22: 还款期限（年） | C22: =IF(C15="","",C15) -> 
A23: 还款总额 | B23: 工资部分 | C23: =IF(ISERROR(C18*C16),"",C18*C16) -> 
B24: 工资外收入部分
A25: 还款总额合计 | C25: =SUM(C23:C24) -> 0 | D25: 0 | E25: 0 | F25: 0 | G25: 0 | H25: 0
A26: 利息总额 | B26: 工资部分 | C26: =IF(ISERROR(C23-$C10),"",C23-$C10) -> 
B27: 工资外收入部分
A28: 利息总额合计 | C28: =SUM(C26:C27) -> 0 | D28: 0 | E28: 0 | F28: 0 | G28: 0 | H28: 0
A29: 总还款金额和本金的比率 | C29: =IF($C$8="","",C25/$C$8) -> 

Sheet 使用方法
A1: 长期贷款返还计划
A3: 购入物品 | B3: 高档消费品 | D3: <<输入购入物品名称。
A5: 付款条件 | B5: 每月工资还款上限 | C5: 1000 | D5: <<输入可以支付的金额的数值。
B6: 每次工资外收入还款上限 | C6: 4000 | D6: <<输入可以支付的金额的数值。
A8: 借入金额 | C8: 28000 | D8: <<输入借入金额。
A9: 借入项目明细 | B9: 比率（月） | C9: 0.4 | D9: <<输入每月工资还款占总还款的比率，如“50%”。
B10: 工资还款总额 | C10: =C8*C9 -> 11200
B11: 工资外收入还款总额 | C11: =C8-C10 -> 16800
A12: 利息（年利率，如 2.5%） | C12: 0.0326 | D12: <<输入利息的年利率，如“2.5%”。
A13: 支付情况 | C13: 0 | D13: <<期末输入“0”，期首输入“1”。
A15: 还款期限（年） | C15: 35 | D15: 30 | E15: 25 | F15: 20 | G15: 15 | H15: 10
A16: 详细时限 | B16: 工资还款次数 | C16: =C15*12 -> 420 | D16: 360 | E16: 300 | F16: 240 | G16: 180 | H16: 120
B17: 工资外收入还款次数 | C17: =C15*2 -> 70 | D17: 60 | E17: 50 | F17: 40 | G17: 30 | H17: 20
A18: 还款明细 | B18: 每月工资还款额 | C18: =IF(C15="","",-PMT($C$12/12,C$16,$C$10,0,$C$13)) -> 44.74470514 | D18: 48.80459853 | E18: 54.63860039 | F18: 63.58275212 | G18: 78.75334786 | H18: 109.497403
B19: 每次工资外收入还款额 | C19: =IF(C15="","",-PMT($C$12/2,C$17,$C$11,0,$C$13)) -> 404.163307 | D19: =-PMT($C$12/2,D$17,$C$11,0,$C$13) -> 440.9942307 | E19: =-PMT($C$12/2,E$17,$C$11,0,$C$13) -> 493.9014975 | F19: =-PMT($C$12/2,F$17,$C$11,0,$C$13) -> 574.9905839 | G19: =-PMT($C$12/2,G$17,$C$11,0,$C$13) -> 712.4975481 | H19: =-PMT($C$12/2,H$17,$C$11,0,$C$13) -> 991.1140632
A20: 还款判断 | C20: =IF(AND($C$5="",$C$6=""),"",IF(AND($C$5>=C18,$C$6>=C19),"可以还款","无法还款")) -> 可以还款 | D20: 可以还款 | E20: 可以还款 | F20: 可以还款 | G20: 可以还款 | H20: 可以还款
A22: 还款期限（年） | C22: =IF(C15="","",C15) -> 35 | D22: 30 | E22: 25 | F22: 20 | G22: 15 | H22: 10
A23: 还款总额 | B23: 工资部分 | C23: =IF(ISERROR(C18*C16),"",C18*C16) -> 18792.77616 | D23: 17569.65547 | E23: 16391.58012 | F23: 15259.86051 | G23: 14175.60261 | H23: 13139.68836
B24: 工资外收入部分 | C24: 28291.43149 | D24: 26459.65384 | E24: 24695.07488 | F24: 22999.62336 | G24: 21374.92644 | H24: 19822.28126
A25: 还款总额合计 | C25: =SUM(C23:C24) -> 47084.20765 | D25: 44029.30931 | E25: 41086.65499 | F25: 38259.48387 | G25: 35550.52906 | H25: 32961.96962
A26: 利息总额 | B26: 工资部分 | C26: =IF(ISERROR(C23-$C10),"",C23-$C10) -> 7592.776158 | D26: 6369.65547 | E26: 5191.580116 | F26: 4059.86051 | G26: 2975.602614 | H26: 1939.688357
B27: 工资外收入部分 | C27: 11491.43149 | D27: 9659.653842 | E27: 7895.074876 | F27: 6199.623356 | G27: 4574.926444 | H27: 3022.281265
A28: 利息总额合计 | C28: =SUM(C26:C27) -> 19084.20765 | D28: 16029.30931 | E28: 13086.65499 | F28: 10259.48387 | G28: 7550.529058 | H28: 4961.969622
A29: 总还款金额和本金的比率 | C29: =IF($C$8="","",C25/$C$8) -> 1.681578845 | D29: 1.572475333 | E29: 1.467380535 | F29: 1.366410138 | G29: 1.269661752 | H29: 1.177213201
